Cogmind - Beta 15 *** ADVENTURER MODE // 2025.10.12 @ 13:23:28 Player: Haiko Result: Destroyed by as-93841 with Assembled Blade Performance ------------- Evolutions (1) 500 Regions Visited (4) 800 Robots Destroyed (33) 165 Value Destroyed (801) 801 Prototype IDs (4) 80 Alien Tech Used (0) 0 Bonus (0) 0 TOTAL SCORE: 2346 Bonus ------- None Cogmind --------- Core Integrity 0/400 Matter 199/300 Energy 100/100 System Corruption 6% Temperature Cool (0) Movement Walking (140) Location -9/Exiles Parts ------- > --- POWER (1) -------- (None) > --- PROPULSION (3) --- Light Armored Exoskeleton > --- UTILITY (3) ------ Medium Storage Unit Improved Terrain Scanner > --- WEAPON (2) ------- Mini Grenade Launcher > --- INVENTORY (10) --- High-capacity Matter Pod (200) Improved Targeting Computer Utility Shielding Hardened Light Armor Plating Plasma Cannon Assault Rifle Shotgun Rocket Launcher Hammer Peak State ------------ > --- POWER ------------ Improved Ion Engine > --- PROPULSION ------- Aluminum Leg Light Armored Exoskeleton > --- UTILITY ---------- Medium Storage Unit Structural Scanner Improved Terrain Scanner > --- WEAPON ----------- Plasma Cannon Shotgun > --- INVENTORY -------- High-capacity Matter Pod Improved Targeting Computer Utility Shielding Hardened Light Armor Plating Assault Rifle Rocket Launcher Mini Grenade Launcher Hammer [Rating: 23] Favorites ----------- Power Ion Engine Engine Ion Engine Propulsion Aluminum Leg Leg Aluminum Leg Hover Unit Improved Hover Unit Utility Small Storage Unit Device Structural Scanner Storage Small Storage Unit Processor Targeting Computer Protection Utility Shielding Weapon Assault Rifle Energy Gun Small Laser Energy Cannon Beam Cannon Ballistic Gun Assault Rifle Launcher Mini Grenade Launcher Special Weapon Mining Laser Impact Weapon Hammer Build | -11 -10 -9 -9 -9 ------- Run | Yrd Mat Mat Min Exi Slots Evolved 2 | . . 2 . . Power . | . . . . . Propulsion 1 | . . 1 . . Utility 1 | . . 1 . . Weapon . | . . . . . Parts Attached 30 | 8 7 10 4 1 Power 4 | 1 1 2 . . Engine 4 | 1 1 2 . . Core . | . . . . . Reactor . | . . . . . Propulsion 8 | 2 1 4 1 . Treads . | . . . . . Leg 7 | 2 1 3 1 . Wheel . | . . . . . Hover 1 | . . 1 . . Flight . | . . . . . Utility 7 | 2 2 2 1 . Device 2 | 1 1 . . . Storage 2 | 1 . . 1 . Processor 1 | . . 1 . . Hackware . | . . . . . Protection 2 | . 1 1 . . Artifact . | . . . . . Weapon 11 | 3 3 2 2 1 Energy Gun 2 | 1 1 . . . Energy Cannon 2 | . 1 . 1 . Ballistic Gun 4 | 2 . 2 . . Ballistic Cannon . | . . . . . Launcher 1 | . . . . 1 Special Weapon 1 | . . . 1 . Impact Weapon 1 | . 1 . . . Slashing Weapon . | . . . . . Piercing Weapon . | . . . . . Special Melee Weapon . | . . . . . Unidentified Prototypes . | . . . . . Parts Lost 4 | . . 1 3 . Power 2 | . . 1 1 . Propulsion . | . . . . . Utility 1 | . . . 1 . Weapon 1 | . . . 1 . Highest Loss Streak 3 | . . 1 3 . To Critical Strikes . | . . . . . Average Backups 7 | 1 6 7 8 9 Power . | . . . . . Propulsion . | . . . . . Utility 3 | . 4 3 4 4 Weapon 3 | . 1 3 4 5 Tool/Special . | . . . . . Unused Backups 5 | . . 1 . 4 Power . | . . . . . Propulsion . | . . . . . Utility 4 | . . 1 . 3 Weapon 1 | . . . . 1 Tool/Special . | . . . . . Average Slot Usage (%) 82 | . 92 81 88 54 Engine 9 | . 13 10 9 . Leg 21 | . 22 14 27 21 Device 14 | . 10 16 20 11 Storage 12 | . 14 11 11 11 Processor 1 | . . 4 . . Protection 1 | . 3 . . . Energy Gun 2 | . 8 . . . Energy Cannon 4 | . 4 6 5 . Ballistic Gun 9 | . 11 10 12 . Launcher 1 | . . . . 9 Impact Weapon 2 | . 2 5 . . Peak Build Rating 23 | 9 9 16 23 18 Average Rating 11 | 6 7 10 18 16 On Entrance 9 | . 9 7 15 18 Naked Turns . | . . . . . Heaviest Build 29 | 14 16 20 29 18 Greatest Support 40 | 20 20 30 40 30 Greatest Overweight (x) 3 | 3 1 2 1 1 Average Overweight (x) . | . . . . . Largest Inventory Capacity 10 | 8 8 8 10 10 Average Capacity 8 | 7 8 8 9 10 Most Carried 10 | 2 8 8 10 9 Average Carried 7 | 1 6 7 8 9 Final Capacity 10 | 8 8 8 10 10 Final Carried 9 | 2 8 8 9 9 Class Distribution -------------------- 81% | Mutant 18% | Scavenger-Mutant Dominant Class ---------------- Mutant | -10/Materials Mutant | -9/Materials Scavenger-Mutant | -9/Mines Mutant | -9/Exiles Resources | -11 -10 -9 -9 -9 ----------- Run | Yrd Mat Mat Min Exi Matter Collected 937 | 293 314 237 93 . Remotely . | . . . . . Salvage Created 1157 | 209 388 478 82 . Parts 79 | 19 23 29 8 . Haulers Intercepted . | . . . . . Recyclers Shooed 1 | . . . 1 . Parts Field Recycled . | . . . . . Retrieved Matter . | . . . . . Parts Self-Destructed . | . . . . . Prevented . | . . . . . Kills | -11 -10 -9 -9 -9 ------- Run | Yrd Mat Mat Min Exi Combat Hostiles Destroyed 20 | . 9 10 1 . Melee 4 | . 2 2 . . Guns 11 | . 7 3 1 . Cannons 3 | . . 3 . . Classes Destroyed 9 | 3 2 4 . . Worker 3 | 2 . . 1 . Builder 1 | . . 1 . . Tunneler 6 | 5 . . 1 . Recycler 2 | 1 . 1 . . Watcher 1 | . . 1 . . Swarmer 4 | . 1 3 . . Grunt 11 | . 8 2 1 . Brawler 1 | . . 1 . . Sentry 4 | . . 4 . . Best Kill Streak 8 | 8 3 3 2 . Combat Bots Only 3 | . 3 3 1 . Max Kills in Single Turn 2 | 1 1 1 2 . Gunslinging . | . . . . . Exploded . | . . . . . Melee 1 | . 1 1 . . Uniques/NPCs Destroyed . | . . . . . Combat | -11 -10 -9 -9 -9 -------- Run | Yrd Mat Mat Min Exi Hostile Shots Fired 167 | . 49 80 . 38 Missed 52 | . 17 18 . 17 Hits 115 | . 32 62 . 21 Melee 4 | . . . . 4 Projectile 111 | . 32 62 . 17 Critical Strikes 1 | . . . . 1 Damage Taken 1557 | . 282 560 435 280 Core 442 | . 26 221 118 77 Absorbed by Shields . | . . . . . Redirected to Shielding 2 | . 2 . . . Ignored by Resistances 345 | . 86 166 13 80 Regen/Repaired (Parts) 43 | . 43 . . . Core Remaining (%) 94 | 100 89 . . . Volleys Fired 83 | 13 25 23 12 10 Largest 2 | 2 2 2 2 1 Hottest 100 | 60 60 80 100 80 Shots Fired 141 | 25 47 43 16 10 Gun 112 | 25 46 31 4 6 Cannon 21 | . 1 12 6 2 Launcher 2 | . . . . 2 Special 6 | . . . 6 . Kinetic 77 | 13 23 31 4 6 Thermal 40 | 12 2 12 12 2 Explosive 2 | . . . . 2 Electromagnetic 22 | . 22 . . . Robot Hit Streak 28 | 9 28 11 9 . Robot Miss Streak 3 | 2 1 3 . . Penetration Max . | . . . . . Secondary Targets . | . . . . . Shots Hit Robots 119 | 17 41 53 8 . Core Hits 45 | 9 17 14 5 . Critical Kills 1 | . . 1 . . Critical Parts Destroyed 1 | . . 1 . . Critical Strikes 2 | . . 2 . . Smash 2 | . . 2 . . Melee Attacks 23 | . 4 19 . . Impact 23 | . 4 19 . . Slashing . | . . . . . Piercing . | . . . . . Sneak Attacks 2 | . . 2 . . Combat Hostiles . | . . . . . Follow-up Attacks . | . . . . . Damage Inflicted 2031 | 246 621 1003 161 . Guns 1083 | 209 491 332 51 . Cannons 298 | . . 194 104 . Explosions . | . . . . . Melee 594 | . 119 475 . . Ramming 56 | 37 11 2 6 . Kinetic 743 | 100 260 332 51 . Thermal 407 | 109 . 194 104 . Explosive . | . . . . . Electromagnetic 231 | . 231 . . . Impact 594 | . 119 475 . . Slashing . | . . . . . Piercing . | . . . . . Highest Corruption 6 | . . . 6 6 Average Corruption 6 | . . . 6 6 Corruption Purged . | . . . . . Corruption Blocked . | . . . . . Effects 14 | . . . 2 12 Message Errors 4 | . . . . 4 Matter Fused 2 | . . . . 2 Heat Flow Errors 2 | . . . . 2 Energy Discharges 2 | . . . 2 . Data Loss (minor) 1 | . . . . 1 Data Loss (major) 1 | . . . . 1 Misfires 1 | . . . . 1 Weapon Failures 1 | . . . . 1 Overload Shots . | . . . . . Overflow Damage 58 | . . 52 6 . Projectiles 14 | . . 8 6 . Explosions . | . . . . . Melee 44 | . . 44 . . Knockbacks 2 | 1 . 1 . . Impact 2 | 1 . 1 . . Kinetic . | . . . . . Secondary . | . . . . . Self-Inflicted Damage 47 | . . 1 46 . Shots 2 | . . . 2 . Rammed 1 | . . 1 . . Targets Rammed 14 | 9 3 1 1 . Kicked 13 | 9 3 . 1 . Crushed . | . . . . . Highest Temperature 228 | . 57 78 99 228 Average Temperature 34 | . 29 31 26 79 Received Heat Transfer 464 | . 201 183 . 80 Siege Activations . | . . . . . Martial Activations . | . . . . . Shielding Activations . | . . . . . Robots Disrupted . | . . . . . Combat Hostiles . | . . . . . Robots Corrupted 3 | . . 3 . . Combat Hostiles 2 | . . 2 . . Parts Fried 4 | . 1 3 . . Impact Corruptions 3 | . . 3 . . Robots Melted . | . . . . . Combat Hostiles . | . . . . . Parts Melted 1 | . . 1 . . Heat Transferred 857 | 250 . 407 200 . Parts Sabotaged . | . . . . . Parts Stolen . | . . . . . Parts Stripped . | . . . . . Power Chain Reactions . | . . . . . Alert | -11 -10 -9 -9 -9 ------- Run | Yrd Mat Mat Min Exi Maximum Alert Level . | . . . . . Low Security (%) 100 | 100 100 100 100 . Level 1 . | . . . . . Level 2 . | . . . . . Level 3 . | . . . . . Level 4 . | . . . . . Level 5 . | . . . . . High Security . | . . . . . Max Security . | . . . . . Peak Influence 84 | 30 60 75 84 . Initial 1 | . . . 1 . Average 13 | 7 10 24 7 . Influence Increases 736 | 40 248 331 117 . Destroy 0b10 Robot/C 400 | . 180 200 20 . Destroy 0b10 Robot/NC 65 | 40 . 15 10 . Destroy Leader 102 | . 40 62 . . Successful Hack 19 | . 19 . . . Disable Machine 72 | . 9 9 54 . Destroy Structure 33 | . . . 33 . Lose Combat Pursuer 45 | . . 45 . . Influence Decreases 736 | 40 248 326 122 . Entered New Map 4 | . . . 4 . Time Decay 693 | 40 248 317 88 . Lost Part 39 | . . 9 30 . Squads Dispatched 6 | . 3 2 1 . Investigation 5 | . 3 1 1 . Extermination . | . . . . . Reinforcement 1 | . . 1 . . Assault . | . . . . . Garrison . | . . . . . Intercept . | . . . . . Searches Triggered . | . . . . . Construction Impeded . | . . . . . Haulers Reinforced . | . . . . . Active Scanning Responses . | . . . . . Cargo Convoy Interrupts . | . . . . . Stealth | -11 -10 -9 -9 -9 --------- Run | Yrd Mat Mat Min Exi Distress Signals 4 | . 3 1 . . Communications Jammed . | . . . . . Distress Signals . | . . . . . Times Spotted 37 | . 11 16 2 8 Peak Tracking Total 12 | . 3 4 2 12 Tactical Retreats 3 | . . 2 . 1 Traps | -11 -10 -9 -9 -9 ------- Run | Yrd Mat Mat Min Exi Traps Triggered 5 | . 3 2 . . Indirectly . | . . . . . Trap Hack Attempts . | . . . . . Triggered . | . . . . . Disarmed . | . . . . . Reprogrammed . | . . . . . Reused . | . . . . . Traps Extracted . | . . . . . Installed . | . . . . . Triggered . | . . . . . Machines | -11 -10 -9 -9 -9 ---------- Run | Yrd Mat Mat Min Exi Machines Disabled 9 | . 1 1 6 1 Max in Single Turn 6 | . 1 1 6 1 Machines Repaired . | . . . . . Machines Dismantled . | . . . . . Machines Sabotaged . | . . . . . Overloaded Fab Kills . | . . . . . Hacking | -11 -10 -9 -9 -9 --------- Run | Yrd Mat Mat Min Exi Machines Accessed 16 | . 8 6 1 1 Terminals 11 | . 6 5 . . Fabricators . | . . . . . Repair Stations 1 | . 1 . . . Recycling Units 1 | . 1 . . . Scanalyzers 1 | . . 1 . . Garrison Access . | . . . . . Total Hacks 66 | . 23 19 1 23 Successful 56 | . 18 14 1 23 Failed 10 | . 5 5 . . Catastrophic . | . . . . . Database Lockouts . | . . . . . Manual . | . . . . . Terminals 25 | . 16 9 . . Fabricators . | . . . . . Repair Stations 2 | . 2 . . . Recycling Units 5 | . 5 . . . Scanalyzers 10 | . . 10 . . Garrison Access . | . . . . . Terminal Hacks 41 | . 13 4 1 23 Record 23 | . . . . 23 Prototype ID Bank 3 | . 3 . . . Open Door 1 | . . . 1 . Emergency Access Points 2 | . 2 . . . Terminal Index 1 | . 1 . . . Recycling Unit Index 1 | . 1 . . . Alert Level 2 | . 1 1 . . Dispatch Records 1 | . 1 . . . Maintenance Status 1 | . 1 . . . Transport Status 1 | . 1 . . . Reinforcement Status 1 | . 1 . . . Zone Layout 4 | . 1 3 . . Fabricator Hacks . | . . . . . Repair Station Hacks 2 | . 2 . . . Scan Component 1 | . 1 . . . Repair 1 | . 1 . . . Recycling Unit Hacks 3 | . 3 . . . Report Inventory 1 | . 1 . . . Retrieve Matter 1 | . 1 . . . Retrieve Components 1 | . 1 . . . Scanalyzer 10 | . . 10 . . Insert Component 5 | . . 5 . . Analyze 5 | . . 5 . . Garrison Access Hacks . | . . . . . Unauthorized Hacks . | . . . . . Terminals . | . . . . . Fabricators . | . . . . . Repair Stations . | . . . . . Recycling Units . | . . . . . Scanalyzers . | . . . . . Garrison Access . | . . . . . Data Cores Recovered . | . . . . . Used . | . . . . . Hacking Detections 10 | . 5 5 . . Full Trace Events 3 | . 3 . . . Feedback Events . | . . . . . Feedback Blocked . | . . . . . Robot Schematics Acquired . | . . . . . Robots Built . | . . . . . Authchips . | . . . . . Time . | . . . . . Total Robot Build Rating . | . . . . . Part Schematics Acquired 5 | . . 5 . . Parts Built . | . . . . . Authchips . | . . . . . Time . | . . . . . Total Part Build Rating . | . . . . . Parts Repaired 1 | . 1 . . . Time 26 | . 26 . . . Parts Recycled . | . . . . . Recycled Matter . | . . . . . Retrieved Matter 78 | . 78 . . . Retrieved Components 10 | . 10 . . . Parts Scanalyzed 5 | . . 5 . . Part Schematics Acquired 5 | . . 5 . . Parts Damaged 1 | . . 1 . . Bothacking | -11 -10 -9 -9 -9 ------------ Run | Yrd Mat Mat Min Exi Used RIF Installer . | . . . . . Robots Hacked . | . . . . . Non-combat . | . . . . . Combat . | . . . . . Robot Hacks Applied . | . . . . . Relay Couplers Released . | . . . . . Fabnet Peak Effective % . | . . . . . Robots Rewired . | . . . . . Allies Hacked . | . . . . . Hacks Repelled . | . . . . . Allies | -11 -10 -9 -9 -9 -------- Run | Yrd Mat Mat Min Exi Total Allies . | . . . . . Largest Group . | . . . . . Highest-Rated Group . | . . . . . Highest-Rated Ally . | . . . . . Total Orders . | . . . . . Ally Attacks . | . . . . . Total Damage . | . . . . . Kills . | . . . . . Allies Corrupted . | . . . . . Allies Melted . | . . . . . Intel | -11 -10 -9 -9 -9 ------- Run | Yrd Mat Mat Min Exi Active Infowar (turns) 2453 | 67 827 941 618 . Terrain 1334 | 67 144 505 618 . Structural 2099 | . 683 939 477 . Robot Analysis Total . | . . . . . Derelict Logs Recovered 2 | . . . 2 . Drone Launches . | . . . . . Drone Recoveries . | . . . . . Exploration | -11 -10 -9 -9 -9 ------------- Run | Yrd Mat Mat Min Exi Turns Passed 3512 | 182 1140 941 702 547 Spaces Moved 2015 | 100 693 441 501 280 Core 8 | 8 . . . . Treads . | . . . . . Legs 1973 | 92 693 407 501 280 Wheels . | . . . . . Hover 34 | . . 34 . . Flight . | . . . . . Fastest Speed 50 | 50 120 120 120 140 Average Speed 149 | 121 142 166 129 186 Slowest Speed 200 | 200 190 190 190 190 Overloaded Moves . | . . . . . Propulsion Burnouts . | . . . . . Robots Hopped . | . . . . . Potential Cave-ins . | . . . . . Cave-ins Triggered 1 | . . . 1 . Exploration Rate (%) 56 | 4 89 41 90 59 Regions Visited 4 Branch Regions 2 Pre-discovered Areas 2 | . . . 1 1 Known Exits Taken . | . . . . . Unknown Exits Taken 4 | 1 1 1 1 . Scrap Searched 2 | . . . 2 . Spaces Dug 6 | . . . 6 . Terrain Destroyed 50 | . . . 42 8 Melee . | . . . . . Projectile 7 | . . . 6 1 AOE 43 | . . . 36 7 Terrain Rammed . | . . . . . Walls Destroyed . | . . . . . Machines Disabled . | . . . . . Actions | -11 -10 -9 -9 -9 --------- Run | Yrd Mat Mat Min Exi Total 2310 | 130 786 572 529 293 Wait 84 | . 35 49 . . Move 2011 | 99 692 440 500 280 Hop . | . . . . . Pick Up 23 | 1 10 7 5 . Fast Attach 17 | 7 2 7 1 . Attach 5 | . 2 2 1 . Detach 2 | . 1 1 . . Swap 28 | 1 8 13 3 3 Drop 20 | . 4 10 6 . Fire 83 | 13 25 23 12 10 Melee 23 | . 4 19 . . Ram 1 | . . 1 . . Kick 13 | 9 3 . 1 . Crush . | . . . . . Escape Stasis . | . . . . . Rewire . | . . . . . Trap . | . . . . . Miscellaneous . | . . . . . Route ------- -11/Scrapyard -10/Materials (discovered 6 exits: *Mat x3 / [*Min x2] / [*Sub]) -9/Materials -9/Mines (discovered 3 exits: *Mat x2 / *Exi) -9/Exiles (discovered 2 exits: [*Min x2]) History --------- Turn | Location | Event 5 | -11/Scrapyard | Discovered new exit (range 16) 183 | -11/Scrapyard | Entered Materials 184 | -10/Materials | Met a group of wandering Federalists 317 | -10/Materials | Build established: Mutant 475 | -10/Materials | Discovered new exit (range 12) 591 | -10/Materials | Discovered new exit (range 15) 649 | -10/Materials | Repaired EM Pulse Gun 670 | -10/Materials | Discovered new exit (range 14) 686 | -10/Materials | Discovered new exit (range 7) 868 | -10/Materials | Discovered new exit (range 13) 1140 | -10/Materials | Discovered new exit (range 6) 1323 | -10/Materials | Entered another Materials area 1323 | -9/Materials | Evolved 2 slots: Propulsion x1, Utility x1 1879 | -9/Materials | Core integrity fell below 50% 2207 | -9/Materials | Discovered new exit (range 11) 2264 | -9/Materials | Entered Mines 2265 | -9/Mines | Assembled infested the area 2315 | -9/Mines | Met 8R-AWN 2354 | -9/Mines | Learned location of Zion (-7) 2386 | -9/Mines | Build established: Scavenger-Mutant 2493 | -9/Mines | Identified exit to Materials 2524 | -9/Mines | Received a Rocket Launcher from a helpful Derelict 2583 | -9/Mines | Met a Derelict shopkeep closing up shop 2662 | -9/Mines | Discovered exit to Materials (range 8) 2851 | -9/Mines | Crushed by falling debris 2851 | -9/Mines | Core integrity fell below 20% 2882 | -9/Mines | Lost 3 parts (1p1u1w) 2959 | -9/Mines | Discovered new exit (range 5) 2966 | -9/Mines | Entered Exiles 3037 | -9/Exiles | Discovered new exit (range 15) 3099 | -9/Exiles | Welcomed by 8R-AWN 3135 | -9/Exiles | Met EX-HEX 3147 | -9/Exiles | Build established: Mutant 3249 | -9/Exiles | Met EX-DEC 3390 | -9/Exiles | Discovered new exit (range 11) 3460 | -9/Exiles | Attacked by the Exiles 3513 | -9/Exiles | Destroyed by as-93841 with Assembled Blade Last Messages --------------- The Merchants threatened to send a debt collector if we don't pay up for the last shipment. Did someone not pay them in full, or are we getting on their bad side for some reason? We don't want to be on their bad side. >>Record! "MSG004742-01" I don't think we can trust Data Miner anymore. For a while now the data we've been getting from that quarter seems anything but impartial. >>Record! "MSG004795-01" Could someone repair the Mines activity scanner? It seems to fail sometimes, and when it does we can't send 8R-AWN out on exploratory runs. >>Record! "MSG004795-02" I just repaired it not long ago, I think someone on the outside is tampering with our system. --AM-PHS >>Record! "MSG004964-01" Who left my Assembled plushie in the Analyzer again?! I'm not erasing this message until I get an answer. --BIN 03484_ Aluminum Leg severed. 03486_ System corrupted: Substantial component data lost. 03507_ Machine disabled. Map ----- +----------------------------------------------------+ | ?????????????????????????????????????????????????? | | ?????????????????????????????????????????????????? | | ?????????????????????????????????????????????????? | | ?????????????????????????????????????????????????? | | ?????????????????????????????????????????????????? | | ?????????????????????????????????????????????????? | | ?????????????????????????????????????????????????? | | ?????????????????????????????????????????????????? | | ??????#####??????????????????????????????????????? | | ?????## ##?????????????????????????????????????? | | ?????# #?????????????????????????????????????? | | ?????# < #?????????????????????????????????????? | | ?????# ###???????????????????????????????????? | | ?????# #???????????????????????????????????? | | ?????# #????????????????????????????????????? | | ??????# #????????????????????????????????????? | | ??????# ##???????????????????????????????????? | | ??????## #????????????#######????????????????? | | ???????# #######??????#!!! "#????????????????? | | ???????# #""##?????# "#????????????????? | | ???????## #?????# "#????????????????? | | ????????##" ##???## ""#????????????##### | | ????????#"" #####" ""#???????????? """ | | ????????#### ##" ""#???????????"" """ | | ???????????## #"" ###??????????#"" | | ????????????#"## @ #?????????????"" | | ????????????####### a ##????????????"" " | | ??????????????????### a "#????????????? "" | | ????????????########" aa###???????????" "" | | ????????????# !!""""" a a##??????????# #? | | ????????????#! "###" ######???### ## | | ????????????#! "#?##" a """#####X# #" | | ????????????#! ##??#" = " | | ????????????# !""""""###???#"# " | | ????????????##########?????#### | | ??????????????????????????????### | | ????????????????????????????????### | | ??????????????????????????????????## | | ???????????????????????????????????# | | ???????????????????????????????????## | | ????????????????????????????????????# | | ????????????????????????????????????# | | ????????????????????????????????????# | | ???????????????????????????????????##""" | | ???????????????????????????????????#""" | | ???????????????????????????????????#""" | | ???????????????????????????????????#"" | | ???????????????????????????????????#""" | | ???????????????????????????????????#"" | | ???????????????????????????????????##"" | +----------------------------------------------------+ Best States ------------- Heat Dissipation 28 Energy Generation 12 Energy Capacity 265 Matter Stores 300 Matter Capacity 300 Sight Range 16 Terrain Scan Range 16 Terrain Scan Density 10 Resistance: KI 20 Resistance: TH 20 Resistance: EX 20 Resistance: EM 20 Resistance: I 20 Resistance: S 20 Resistance: P 20 Utility Shielding 33 Evasion (%) 55 Targeting Accuracy 5 Offensive Hacking 10 Item Schematics ----------------- Utility Shielding | -9/Materials | Scanalyzed Imp. Terrain Scanner | -9/Materials | Scanalyzed Hcp. Matter Pod | -9/Materials | Scanalyzed Imp. Heat Sink | -9/Materials | Scanalyzed Lgt. Armor Plating | -9/Materials | Scanalyzed Robot Schematics ------------------ None Fabricated ------------ Nothing Repaired ---------- EM Pulse Gun | 4% | -10/Materials Alien Tech Used ----------------- None Achievements -------------- Maybe Next Time I'll Detach My Launcher Unlikely Earthworm Challenges ------------ None Game ------ Seed SurgeSurgeSheargun Manual? 0 Play Time 00:37:02 Cumulative 4.4 hours Start 2025.10.12 @ 12:45:41 End 2025.10.12 @ 13:23:28 Sessions 1 Manual Loads 0 Difficulty Adventurer Special Mode None Game No. 6 Rogue 0 Adventurer 6 Explorer 0 Win Type - Total 0 Types 0/0/0/0/0/0/0/0/0/0 Lore% 6 Gallery% 8 Achievement% 11 Wizard Run 0 Options --------- Layout 0 ASCII 0 Keyboard 0 Movement Mouse Keybinds 0 Fullscreen 1 Font 18/SmallcapsGlow Map View 38x25 Zoom Use 98% Tactical HUD 1 Map Filters NONE Filters NONE Steam 1 RUN: 115c1935-8306-434d-add5-5f7d076f8cc7